[Event "EICC 2025"]
[Site "Eforie-Nord"]
[Date "2025.03.15"]
[Round "1.8"]
[White "Wojtaszek, Radoslaw"]
[Black "Noy, Eyal"]
[Result "1-0"]
[Annotator "TA"]
[ECO "E12"]
[WhiteElo "2659"]
[BlackElo "2337"]
[PlyCount "126"]
[EventDate "2025.03.14"]
[EventType "swiss"]
[EventCountry "ROU"]
[SourceTitle "playchess.com"]
[Source "ChessBase"]
[SourceQuality "1"]
[TimeControl "40/5400+30:1800+30"]

{[%evp 10,126,0,6,30,18,18,23,37,34,83,79,81,60,51,36,28,5,8,0,17,4,10,0,0,0,16,12,26,14,19,18,31,28,38,37,41,39,45,45,42,48,47,37,49,42,50,46,58,53,71,60,63,48,157,192,205,192,177,191,177,172,177,177,167,168,169,169,185,158,123,91,163,175,405,97,99,106,90,90,90,47,47,11,11,11,19,19,106,106,106,106,106,106,106,106,106,106,106,106,106,106,106,52,59,64,141,141,141,141,141,141,141,141,11256,5167,29988,29989,29990]} 1. d4 {[%emt 0:00:02]} Nf6 {[%emt 0:00:10]} 2. c4 {[%emt 0:00:07]} e6 {[%emt 0:00:33]} 3. Nf3 {[%emt 0:00:07]} b6 {[%emt 0:00:23]} 4. a3 {[%emt 0:00:10]} Bb7 {[%emt 0:00:16]} 5. Bf4 {[%emt 0:00:11]} Be7 {[%emt 0:04:34]} 6. Nc3 {[%emt 0:00:26]} d5 {[%emt 0:00:26] E12: Queen's Indian: Unusual White 4th moves, 4 a3, 4 Nc3 Bb7 5 a3 and 4 Nc3 Bb7 .} 7. cxd5 $1 {[%emt 0:00:38][%mdl 4] is currently scoring better than 7.e3.} Nxd5 {[%emt 0:02:24]} 8. Nxd5 {[%emt 0:00:15]} Bxd5 {[%emt 0:00:18] White has an edge.} 9. Qc2 {[%emt 0:04:17]} Bxf3 {[%emt 0:23:25]} (9... O-O $14) 10. exf3 $146 {[%emt 0:00:57]} (10. gxf3 Bd6 11. Bd2 Qh4 12. Qe4 Qxe4 13. fxe4 e5 14. dxe5 Bxe5 15. O-O-O Nd7 16. f4 {½-½ Sakaev,K (2596)-Airapetian,G (2444) Lipetsk Winter Cup rapid 2020 (4)}) 10... Bd6 {[%emt 0:02:24]} 11. Be3 {[%emt 0:11:16] White is much more active.} Nd7 {[%emt 0:03:45]} 12. f4 {[%emt 0:00:09]} O-O {[%emt 0:01:18]} 13. f5 {[%emt 0:02:23]} exf5 {[%emt 0:09:12]} 14. Qxf5 {[%emt 0:00:07]} Nf6 {[%emt 0:03:06][%cal Of6d5]} 15. Bc4 {[%emt 0:08:22]} Qc8 {[%emt 0:06:00]} 16. Qxc8 {[%emt 0:17:49]} (16. Qc2 {keeps more tension.} Ng4 17. O-O-O Nxe3 18. fxe3 c5 19. Kb1) 16... Raxc8 {[%emt 0:01:37]} 17. h3 {[%emt 0:00:08]} c5 {[%emt 0:07:26] Threatens to win with ...cxd4.} 18. Ba6 {[%emt 0:03:32] A strong pair of Bishops.} Rc7 {[%emt 0:05:59]} 19. O-O {[%emt 0:00:32]} cxd4 {[%emt 0:07:58]} 20. Bxd4 {[%emt 0:01:12]} Re8 {[%emt 0:01:02]} 21. Rfd1 {[%emt 0:01:15]} Re6 {[%emt 0:05:02]} 22. Rac1 {[%emt 0:01:32]} Rxc1 {[%emt 0:03:20]} 23. Rxc1 {[%emt 0:01:48]} Bf4 {[%emt 0:03:42]} 24. Rc8+ {[%emt 0:04:19]} Re8 {[%emt 0:00:14]} 25. Kf1 {[%emt 0:00:09]} Rxc8 {[%emt 0:01:40]} 26. Bxc8 $14 {[%emt 0:00:03][%mdl 4096] Endgame KBB-KBN} Kf8 {[%emt 0:02:12]} 27. Ke2 {[%emt 0:07:53]} Ke7 {[%emt 0:01:35]} 28. g3 {[%emt 0:00:11]} Bc7 {[%emt 0:02:13]} 29. Kd3 {[%emt 0:00:45]} Ne8 {[%emt 0:00:14]} 30. Ba6 {[%emt 0:01:34]} f6 {[%emt 0:01:41]} 31. Bb5 {[%emt 0:07:04]} Bd6 {[%emt 0:00:40]} (31... Nd6 $14 32. Ba4 Nf7) 32. Bxe8 $1 $16 {[%emt 0:01:35]} Kxe8 {[%emt 0:00:05] KB-KB} 33. Kc4 $1 {[%emt 0:00:16]} Kd7 {[%emt 0:00:24]} 34. Kb5 {[%emt 0:01:39]} Kc7 {[%emt 0:00:13]} 35. Ka6 {[%emt 0:00:04]} Kc6 {[%emt 0:01:56]} 36. a4 $1 {[%emt 0:03:56]} (36. Kxa7 $6 b5 $14) 36... Bb4 {[%emt 0:00:31]} 37. Be3 {[%emt 0:01:19]} (37. Kxa7 b5 $16) 37... g6 {[%emt 0:00:31]} 38. Kxa7 {[%emt 0:02:07]} b5 {[%emt 0:00:26]} 39. axb5+ {[%emt 0:00:05]} Kxb5 {[%emt 0:00:03]} 40. Kb7 {[%emt 0:00:04]} Bd6 {[%emt 0:01:00]} (40... Ba5 $16) 41. Kc8 $18 {[%emt 0:33:32]} Be5 $2 {[%emt 0:03:00]} (41... Kc6 {was worth a try.} 42. Kd8 Kb5) 42. b3 $2 {[%emt 0:00:00]} (42. Kd8 $18 {is more deadly. Hoping for b3.} Bxb2 43. Ke7) 42... Kb4 $16 {[%emt 0:00:14]} 43. Kd7 {[%emt 0:00:00]} Kxb3 {[%emt 0:00:17]} 44. Ke6 {[%emt 0:00:00]} Kc4 {[%emt 0:00:13]} 45. g4 {[%emt 0:00:00]} Bc3 {[%emt 0:00:42]} 46. Bb6 {[%emt 0:00:00]} Kd3 {[%emt 0:15:22]} 47. Bd8 {[%emt 0:00:00]} Ke4 {[%emt 0:02:58]} 48. Bxf6 {[%emt 0:00:00]} Be1 {[%emt 0:00:55]} (48... Bd2 $11) 49. Kf7 $1 {[%emt 0:00:00]} Bxf2 {[%emt 0:02:12] [#]} 50. Kg7 $1 {[%emt 0:00:00]} h5 {[%emt 0:02:34]} 51. Kxg6 {[%emt 0:00:00]} hxg4 {[%emt 0:00:12]} 52. hxg4 {[%emt 0:00:00]} Be3 {[%emt 0:00:28] [#]} 53. Bg5 $1 {[%emt 0:00:00]} Bc5 {[%emt 0:01:36]} 54. Bc1 {[%emt 0:00:19]} Be7 {[%emt 0:01:44]} 55. Bd2 {[%emt 0:00:22]} Bd8 {[%emt 0:00:30]} 56. Bc3 {[%emt 0:00:35]} (56. Kh5 $16) 56... Kf4 $14 {[%emt 0:00:56]} 57. Kh5 {[%emt 0:00:05]} Be7 {[%emt 0:00:24]} ({Better is} 57... Kg3 $1 $14) 58. Be1 $16 {[%emt 0:00:06]} Ke5 {[%emt 0:02:19]} 59. Bh4 {[%emt 0:00:06]} Bc5 {[%emt 0:02:53]} 60. g5 {[%emt 0:00:19][%cal Bg4g5,Bg5g6,Bg6g7][%mdl 32]} Ke6 {[%emt 0:00:16]} 61. g6 {[%emt 0:00:04] White wants to mate with Kh6.} Bd4 $2 {[%emt 0:00:45][%mdl 8192]} (61... Bf8 $16) 62. Kh6 $18 {[%emt 0:00:35]} Bc5 {[%emt 0:00:31]} 63. g7 {[%emt 0:00:45]} Kd5 {[%emt 0:01:01] Weighted Error Value: White=0.15 (very precise) /Black=0.39  Loses game:     	---       	Black=1      Missed win:     	White=1     	---        Mistake:       	White=1     	Black=6      Inaccurate:     	White=2     	Black=1      OK:         	White=20    	Black=22     Best:        	White=3     	Black=6      Strong:       	White=5     	---} 1-0

[Event "EICC 2025"]
[Site "Eforie-Nord"]
[Date "2025.03.15"]
[Round "1.8"]
[White "Berend, Elvira"]
[Black "Yilmaz, Mustafa"]
[Result "0-1"]
[Annotator "ChessBase"]
[ECO "A31"]
[WhiteElo "2236"]
[BlackElo "2576"]
[PlyCount "62"]
[EventDate "2025.03.14"]
[EventType "swiss"]
[EventCountry "ROU"]
[SourceTitle "playchess.com"]
[Source "ChessBase"]
[SourceQuality "1"]
[TimeControl "40/5400+30:1800+30"]

1. e4 {[%emt 0:00:04]} c5 {[%emt 0:00:13]} 2. Nf3 {[%emt 0:00:17]} d6 {[%emt 0:00:05]} 3. d4 {[%emt 0:00:19]} cxd4 {[%emt 0:00:06]} 4. Nxd4 {[%emt 0:00:14]} Nf6 {[%emt 0:00:07]} 5. Bd3 {[%emt 0:01:47]} Nc6 {[%emt 0:03:32]} 6. Nxc6 {[%emt 0:02:14]} bxc6 {[%emt 0:00:09]} 7. c4 {[%emt 0:00:57]} g6 {[%emt 0:01:58]} 8. O-O {[%emt 0:04:29]} Bg7 {[%emt 0:00:05]} 9. Nc3 {[%emt 0:01:18]} O-O {[%emt 0:02:53]} 10. Qc2 {[%emt 0:07:43]} Nd7 {[%emt 0:06:03]} 11. b3 {[%emt 0:06:31]} Nc5 {[%emt 0:00:45]} 12. Bb2 {[%emt 0:00:11]} a5 {[%emt 0:02:18]} 13. Be2 {[%emt 0:06:15]} Qb6 {[%emt 0:09:40]} 14. Rab1 {[%emt 0:01:06]} Qa7 {[%emt 0:15:16]} 15. Rbd1 {[%emt 0:06:47]} Bd7 {[%emt 0:09:57]} 16. Kh1 {[%emt 0:12:00]} Rfb8 {[%emt 0:03:42]} 17. f4 {[%emt 0:03:24]} Be8 {[%emt 0:00:50]} 18. Ba1 {[%emt 0:02:05]} Rb4 {[%emt 0:11:37]} 19. Na4 {[%emt 0:17:42]} Nxa4 {[%emt 0:04:23]} 20. Bxg7 {[%emt 0:00:08]} Kxg7 {[%emt 0:00:15]} 21. a3 {[%emt 0:00:46]} Rb7 {[%emt 0:02:12]} 22. bxa4 {[%emt 0:00:06]} Rab8 {[%emt 0:04:59]} 23. c5 {[%emt 0:02:25]} Rb2 {[%emt 0:02:46]} 24. Qc3+ {[%emt 0:00:21]} f6 {[%emt 0:02:32]} 25. Bb5 {[%emt 0:00:34]} Ra2 {[%emt 0:00:50]} 26. cxd6 {[%emt 0:14:31]} cxb5 {[%emt 0:00:52]} 27. e5 {[%emt 0:05:42]} Qb7 {[%emt 0:01:09]} 28. exf6+ {[%emt 0:00:05]} exf6 {[%emt 0:00:12]} 29. Qc7+ {[%emt 0:00:19]} Kf8 {[%emt 0:04:00]} 30. Rf3 {[%emt 0:00:59]} Qxc7 {[%emt 0:01:29]} 31. dxc7 {[%emt 0:00:05]} Rc8 {[%emt 0:00:04]} 0-1

[Event "EICC 2025"]
[Site "Eforie-Nord"]
[Date "2025.03.15"]
[Round "1.9"]
[White "Sonis, Francesco"]
[Black "Djokic, Mihailo"]
[Result "1-0"]
[Annotator "ChessBase"]
[ECO "D78"]
[WhiteElo "2570"]
[BlackElo "2233"]
[PlyCount "75"]
[EventDate "2025.03.14"]
[EventType "swiss"]
[EventCountry "ROU"]
[SourceTitle "playchess.com"]
[Source "ChessBase"]
[SourceQuality "1"]
[TimeControl "40/5400+30:1800+30"]

1. Nf3 {[%emt 0:00:03]} Nf6 {[%emt 0:00:19]} 2. c4 {[%emt 0:00:05]} g6 {[%emt 0:01:58]} 3. g3 {[%emt 0:00:11]} Bg7 {[%emt 0:00:08]} 4. Bg2 {[%emt 0:00:06]} O-O {[%emt 0:00:16]} 5. O-O {[%emt 0:00:05]} d5 {[%emt 0:00:05]} 6. d4 {[%emt 0:02:42]} c6 {[%emt 0:02:00]} 7. b3 {[%emt 0:00:17]} Bf5 {[%emt 0:06:16]} 8. Bb2 {[%emt 0:00:09]} Nbd7 {[%emt 0:02:15]} 9. Nh4 {[%emt 0:05:50]} Be6 {[%emt 0:01:13]} 10. Nd2 {[%emt 0:00:04]} g5 {[%emt 0:05:07]} 11. Nhf3 {[%emt 0:00:14]} h6 {[%emt 0:00:05]} 12. Qc2 {[%emt 0:00:43]} Rc8 {[%emt 0:02:26]} 13. e4 {[%emt 0:01:47]} b5 {[%emt 0:04:36]} 14. exd5 {[%emt 0:10:27]} cxd5 {[%emt 0:00:13]} 15. c5 {[%emt 0:00:06]} Bg4 {[%emt 0:06:58]} 16. b4 {[%emt 0:06:19]} e6 {[%emt 0:01:11]} 17. a4 {[%emt 0:01:33]} Bf5 {[%emt 0:00:16]} 18. Qb3 {[%emt 0:00:47]} a6 {[%emt 0:01:42]} 19. axb5 {[%emt 0:03:38]} axb5 {[%emt 0:00:06]} 20. Rfe1 {[%emt 0:01:49]} Ne4 {[%emt 0:00:58]} 21. Bf1 {[%emt 0:01:26]} Rb8 {[%emt 0:04:17]} 22. Nxe4 {[%emt 0:12:21]} Bxe4 {[%emt 0:02:26]} 23. Nd2 {[%emt 0:00:47]} Bf5 {[%emt 0:03:24]} 24. Ra5 {[%emt 0:07:16]} Qc7 {[%emt 0:03:10]} 25. Bxb5 {[%emt 0:05:05]} Nf6 {[%emt 0:03:18]} 26. Qa4 {[%emt 0:03:11]} Ne4 {[%emt 0:02:07]} 27. Nxe4 {[%emt 0:00:48]} Bxe4 {[%emt 0:00:15]} 28. Bf1 {[%emt 0:02:01]} Qe7 {[%emt 0:02:14]} 29. b5 {[%emt 0:03:34]} g4 {[%emt 0:00:47]} 30. Ra7 {[%emt 0:04:28]} Qg5 {[%emt 0:00:33]} 31. b6 {[%emt 0:03:04]} h5 {[%emt 0:01:47]} 32. Bc1 {[%emt 0:02:32]} Qf6 {[%emt 0:00:20]} 33. Bf4 {[%emt 0:00:20]} e5 {[%emt 0:00:34]} 34. dxe5 {[%emt 0:02:16]} Qe6 {[%emt 0:00:18]} 35. Qd7 {[%emt 0:00:56]} Rfc8 {[%emt 0:02:33]} 36. Qxe6 {[%emt 0:00:44]} fxe6 {[%emt 0:00:04]} 37. b7 {[%emt 0:00:17]} Rc7 {[%emt 0:01:44]} 38. c6 {[%emt 0:00:06]} 1-0

[Event "EICC 2025"]
[Site "Eforie-Nord"]
[Date "2025.03.15"]
[Round "1.9"]
[White "Filip, Lucian-Ioan"]
[Black "Gledura, Benjamin"]
[Result "0-1"]
[Annotator "TA"]
[ECO "B18"]
[WhiteElo "2335"]
[BlackElo "2658"]
[PlyCount "84"]
[EventDate "2025.03.14"]
[EventType "swiss"]
[EventCountry "ROU"]
[SourceTitle "playchess.com"]
[Source "ChessBase"]
[SourceQuality "1"]
[TimeControl "40/5400+30:1800+30"]

{[%evp 9,84,3,12,4,10,0,0,0,2,0,0,-3,0,-21,-24,-47,-54,-39,-28,-43,-37,-31,18,10,-1,-29,6,-20,0,0,40,25,29,0,48,30,25,35,21,0,0,-47,25,-48,-15,-20,-30,-31,-33,-175,-46,-37,-45,-52,-34,-62,-58,-58,-46,-58,-54,-82,-73,-63,-35,-54,-45,-121,-116,-158,-164,-272,-264,-582,-549,-646,-643]} 1. e4 {[%emt 0:00:03]} c6 {[%emt 0:00:41]} 2. d4 {[%emt 0:00:21]} d5 {[%emt 0:00:07]} 3. Nd2 {[%emt 0:00:58]} dxe4 {[%emt 0:00:28]} 4. Nxe4 {[%emt 0:00:03]} Bf5 {[%emt 0:00:17]} 5. Qf3 {[%emt 0:01:12]} e6 {[%emt 0:06:41]} 6. Ne2 {[%emt 0:00:25] B18: Classical Caro-Kann: 4...Bf5 sidelines.} h5 $5 {[%emt 0:12:43][%mdl 4] Exploring less charted territory.} 7. h4 $146 {[%emt 0:05:10]} ({Predecessor:} 7. c3 h4 8. Nf4 Nd7 9. Bd3 Ngf6 10. Ng5 Bxd3 11. Nxd3 Bd6 12. O-O Qe7 13. Re1 O-O-O {1-0 Mastrovasilis,D (2627)-Fridman,D (2626) Wch Blitz Warsaw 2021 (14)}) 7... Nf6 {[%emt 0:03:03]} 8. Nxf6+ {[%emt 0:06:06] The position is equal.} gxf6 {[%emt 0:00:37]} 9. c3 {[%emt 0:16:53]} Bg4 {[%emt 0:10:08]} 10. Qd3 {[%emt 0:13:53]} Nd7 {[%emt 0:00:52]} 11. Ng3 {[%emt 0:11:22] Black must now prevent f3.} Qc7 {[%emt 0:02:03]} 12. Qc2 {[%emt 0:14:13]} O-O-O {[%emt 0:03:54]} 13. Bd3 {[%emt 0:02:24]} Rg8 {[%emt 0:06:40]} 14. Be3 {[%emt 0:02:45]} c5 {[%emt 0:11:40]} 15. Ne2 {[%emt 0:09:21]} Bxe2 {[%emt 0:09:35]} (15... f5 $15 16. Qd2 Bxe2 17. Bxe2 Nf6) 16. Qxe2 {[%emt 0:00:14]} Rg4 {[%emt 0:01:10]} 17. Bc2 {[%emt 0:05:46]} cxd4 {[%emt 0:05:40]} (17... Rxg2 18. d5 $11) 18. cxd4 {[%emt 0:03:15]} (18. Bxd4 {simplifies} Bc5 19. O-O-O Bxd4 20. Rxd4 Rxd4 21. cxd4 Kb8 22. Kb1) 18... Qa5+ {[%emt 0:03:34]} (18... Rxg2 $2 19. Rc1 Rg4 20. Bd3 $18) 19. Kf1 {[%emt 0:01:38]} Bd6 {[%emt 0:01:06]} 20. Bd1 {[%emt 0:02:02]} (20. Be4 $5) 20... Kb8 {[%emt 0:02:38]} 21. Qd2 {[%emt 0:00:38]} Bb4 {[%emt 0:03:11]} (21... Qxd2 $11 22. Bxd2 Rxd4) 22. Qc2 {[%emt 0:00:29]} Rgg8 {[%emt 0:03:02]} 23. a3 {[%emt 0:00:54]} Bd6 {[%emt 0:00:25] Prevents Bf4} 24. Bf3 {[%emt 0:00:24]} Nb6 $1 {[%emt 0:00:38]} 25. g3 {[%emt 0:01:43]} (25. Qd3 $11 {deserves consideration.}) 25... Rc8 {[%emt 0:03:47]} (25... Nd5 $15 26. Re1 (26. Bxh5 $2 Nxe3+ 27. fxe3 Qxh5 $19) 26... f5) 26. Qb3 {[%emt 0:00:15]} (26. Qd3 $1 $11) 26... Qf5 {[%emt 0:00:25]} 27. Ke2 {[%emt 0:00:57]} e5 {[%emt 0:07:10]} 28. Rhc1 {[%emt 0:00:30] Prevents Rc2+} (28. Qxf7 $2 e4 29. Bxh5 Nd5 $19) 28... e4 {[%emt 0:00:19]} 29. Bh1 {[%emt 0:00:29] [#]} (29. Rxc8+ $1 $15 Rxc8 30. Bg2 Qg4+ 31. Kf1) 29... Nd5 {[%emt 0:00:27]} (29... Rcd8 $1 $19 30. Bd2 (30. Qxf7 $2 Nd5 $19) 30... Be5) 30. Rxc8+ $1 $15 {[%emt 0:00:18]} Rxc8 {[%emt 0:00:05]} 31. Rc1 {[%emt 0:00:11]} Re8 {[%emt 0:00:21]} 32. Kd2 {[%emt 0:00:57]} Nxe3 {[%emt 0:02:16]} (32... Qe6 {seems wilder.} 33. Bg2 f5 34. Bh3 Rd8) 33. Qxe3 {[%emt 0:00:14]} Qd5 {[%emt 0:00:06]} 34. Bg2 {[%emt 0:00:54]} f5 {[%emt 0:00:22]} 35. Ke1 {[%emt 0:00:27] [#]} f4 $1 {[%emt 0:00:50]} 36. gxf4 {[%emt 0:00:05][%csl Od4,Of2,Of4,Oh4] White has weak pawns} Qf5 {[%emt 0:00:08] Black is more active.} 37. Bh3 {[%emt 0:00:43]} Qf6 $36 {[%emt 0:00:09][%mdl 2048] White is under pressure.} (37... Qxf4 38. Qxf4 Bxf4 39. Rc4 $11) 38. Bd7 {[%emt 0:00:36] [#]} ({Better is} 38. Kd1 $15) 38... Rd8 $1 $17 {[%emt 0:01:27]} (38... Bxf4 39. Rc6 Qxh4 (39... bxc6 40. Qb3+ Kc7 41. Bxe8 $11) 40. Qc3 bxc6 (40... Qh1+ 41. Ke2 $11) 41. Qb3+ Kc7 42. Bxe8 $11) 39. Qc3 {[%emt 0:00:22][%cal Oc3c8] Intending Qc8+! and mate.} a6 {[%emt 0:00:07][%cal Od6f4]} ({Worse is} 39... Rxd7 40. Qc8#) 40. Bh3 {[%emt 0:00:47]} (40. Qh3 $142) 40... Bxf4 $19 {[%emt 0:00:15]} (40... Qxf4 41. Kf1 $17) 41. Rd1 {[%emt 0:30:11]} (41. d5 Qxh4 42. Rc2) 41... Qxh4 {[%emt 0:30:34] ...e3 would now be deadly.} 42. Ke2 {[%emt 0:00:00] [#]} e3 $1 {[%emt 0:00:00][%mdl 512] Weighted Error Value: White=0.38/Black=0.17 (very precise)   Mistake:       	White=6     	Black=4      Inaccurate:     	White=6     	Black=3      OK:         	White=10    	Black=13     Best:        	---       	Black=1      Strong:       	White=1     	Black=2      Brilliant:      	---       	Black=1} 0-1

[Event "EICC 2025"]
[Site "Eforie-Nord"]
[Date "2025.03.15"]
[Round "1.10"]
[White "Svane, Frederik"]
[Black "Sherman, Raem"]
[Result "1-0"]
[Annotator "TA"]
[ECO "A18"]
[WhiteElo "2654"]
[BlackElo "2333"]
[PlyCount "97"]
[EventDate "2025.03.14"]
[EventType "swiss"]
[EventCountry "ROU"]
[SourceTitle "playchess.com"]
[Source "ChessBase"]
[SourceQuality "1"]
[TimeControl "40/5400+30:1800+30"]

{[%evp 17,97,18,53,52,59,43,62,68,62,49,66,62,56,61,66,60,64,59,75,75,71,64,86,62,77,91,118,112,113,106,117,120,122,117,119,118,123,113,140,143,168,142,252,210,259,259,260,258,239,239,272,287,276,275,412,415,428,434,757,716,930,550,1389,1148,789,770,1064,972,5214,5172,5065,5065,2634,2550,2293,2168,1595,1537,1132,907,749,704]} 1. c4 {[%emt 0:00:04]} e6 {[%emt 0:01:47][%cal Be7e6,Be6d5,Bd5d4][%mdl 32]} 2. Nc3 {[%emt 0:00:26]} Nf6 {[%emt 0:00:39]} 3. e4 {[%emt 0:00:08][%cal Be2e4,Be4e5][%mdl 32]} d5 {[%emt 0:00:05]} 4. cxd5 {[%emt 0:00:17]} exd5 {[%emt 0:00:07]} 5. e5 {[%emt 0:00:05]} d4 {[%emt 0:03:39]} 6. exf6 {[%emt 0:00:31]} dxc3 {[%emt 0:00:13]} 7. Bb5+ {[%emt 0:00:13]} c6 {[%emt 0:01:46]} 8. Qe2+ {[%emt 0:00:27]} Be6 {[%emt 0:00:06]} 9. Bc4 {[%emt 0:00:08]} Qxf6 {[%emt 0:00:10]} 10. dxc3 {[%emt 0:00:50] A18: English Opening: Flohr-Mikenas System (1 c4 Nf6 2 Nc3 e6 3 e4).} Be7 {[%emt 0:04:28]} 11. Bxe6 {[%emt 0:00:57]} Qxe6 {[%emt 0:01:48]} 12. Qxe6 {[%emt 0:00:30] White is slightly better.} fxe6 {[%emt 0:00:03]} 13. Nf3 {[%emt 0:04:17]} Bf6 {[%emt 0:04:05]} 14. Be3 {[%emt 0:11:03]} Nd7 {[%emt 0:03:29][%cal Bb8d7,Bd7e5,Be5f7,Bf7d6][%mdl 32]} 15. O-O-O {[%emt 0:00:16]} O-O-O $146 {[%emt 0:09:58]} (15... Ke7 16. Rhe1 Rhd8 17. Re2 b6 18. Kc2 h6 19. a4 Nf8 20. Ra1 Rd5 21. Nd4 Bxd4 22. Bxd4 {½-½ Mendonca,L (2571)-Nitish,B (2416) Abu Dhabi op 28th 2022 (8)}) 16. Rhe1 {[%emt 0:08:39][%cal Oa2a4] White is much more active.} Rhe8 {[%emt 0:04:51]} 17. Kc2 {[%emt 0:01:21]} h6 {[%emt 0:08:38]} 18. a4 {[%emt 0:04:36]} (18. Bxa7 b6 $16) 18... b6 {[%emt 0:05:12]} 19. Nd2 {[%emt 0:08:42][%cal Oa4a5,Bf3d2,Bd2e4,Be4g3][%mdl 32]} Ne5 {[%emt 0:15:15]} 20. Ne4 {[%emt 0:03:28]} Be7 {[%emt 0:00:44] Against Nd6+} 21. Rxd8+ {[%emt 0:05:21]} Rxd8 {[%emt 0:02:14]} 22. Bd4 {[%emt 0:00:28]} Nf7 {[%emt 0:05:55]} 23. Ng3 $1 {[%emt 0:01:32]} (23. Bxg7 $6 Rg8 24. Bd4 Rxg2 $11) 23... Bf8 {[%emt 0:01:19]} 24. Rxe6 {[%emt 0:02:24]} c5 {[%emt 0:00:14]} 25. Be3 {[%emt 0:00:13]} Kd7 {[%emt 0:00:16] [#]} 26. Re4 {[%emt 0:00:03]} Nd6 {[%emt 0:00:13]} 27. Re5 {[%emt 0:01:01]} g6 {[%emt 0:08:56]} 28. Ne4 {[%emt 0:04:46]} Nxe4 {[%emt 0:00:31]} 29. Rxe4 $16 {[%emt 0:00:04][%mdl 4096] Endgame KRB-KRB. White is a pawn up.} h5 {[%emt 0:00:11]} (29... Rc8 $16 30. Kb3 Rc6) 30. Bg5 $18 {[%emt 0:02:00]} Rc8 {[%emt 0:03:25] [#]} 31. Rf4 $1 {[%emt 0:00:10]} Bd6 {[%emt 0:00:18]} 32. Rf7+ {[%emt 0:00:14]} Kc6 {[%emt 0:01:51]} 33. Rf6 {[%emt 0:00:03]} Rf8 {[%emt 0:00:17]} 34. Rxf8 {[%emt 0:00:55]} ({Weaker is} 34. Rxg6 Rxf2+ 35. Kb3 Rxg2 $16) 34... Bxf8 {[%emt 0:00:02] KB-KB. White is a pawn up.} 35. c4 {[%emt 0:02:04]} a6 {[%emt 0:03:22]} (35... Kd6 {was called for.} 36. Kd3 Ke5 37. f4+ Kf5) 36. Kd3 {[%emt 0:00:05]} b5 {[%emt 0:00:06]} 37. b3 {[%emt 0:00:02][%cal Bb2b3,Bb3a4][%mdl 32] White is clearly winning.} bxa4 {[%emt 0:01:02]} (37... Bg7 $142 38. f3 Be5) 38. bxa4 {[%emt 0:00:01]} Kd6 {[%emt 0:00:21]} 39. Ke4 {[%emt 0:00:04]} Ke6 {[%emt 0:00:17]} 40. h3 {[%emt 0:02:05][%cal Bh2h3,Bh3g4][%mdl 32]} Bg7 {[%emt 0:02:24]} 41. Be3 {[%emt 0:30:11]} Bf8 {[%emt 0:31:16]} 42. g4 {[%emt 0:00:04]} hxg4 {[%emt 0:00:09]} 43. hxg4 {[%emt 0:00:01]} Kd6 {[%emt 0:03:53]} 44. Bf4+ {[%emt 0:00:01]} Ke6 {[%emt 0:00:09]} 45. Be5 {[%emt 0:05:05] Strongly threatening f4.} g5 {[%emt 0:00:54]} 46. Bc3 {[%emt 0:00:04]} Be7 {[%emt 0:00:23]} 47. Bd2 {[%emt 0:00:03]} Bf6 {[%emt 0:00:07]} 48. Be3 {[%emt 0:00:01]} Be7 {[%emt 0:00:07]} 49. f3 {[%emt 0:00:01] Weighted Error Value: White=0.02 (flawless) /Black=0.60  Mistake:       	---       	Black=3      OK:         	White=15    	Black=10     Best:        	White=2     	---        Strong:       	White=2     	---} 1-0

[Event "EICC 2025"]
[Site "Eforie-Nord"]
[Date "2025.03.15"]
[Round "1.10"]
[White "Levitan, Tal"]
[Black "Gorshtein, Ido"]
[Result "0-1"]
[Annotator "ChessBase"]
[ECO "B13"]
[WhiteElo "2233"]
[BlackElo "2569"]
[PlyCount "72"]
[EventDate "2025.03.14"]
[EventType "swiss"]
[EventCountry "ROU"]
[SourceTitle "playchess.com"]
[Source "ChessBase"]
[SourceQuality "1"]
[TimeControl "40/5400+30:1800+30"]

1. e4 {[%emt 0:00:03]} c6 {[%emt 0:00:05]} 2. d4 {[%emt 0:00:12]} d5 {[%emt 0:00:06]} 3. exd5 {[%emt 0:00:03]} cxd5 {[%emt 0:00:05]} 4. Bd3 {[%emt 0:00:06]} Nf6 {[%emt 0:00:27]} 5. h3 {[%emt 0:00:06]} g6 {[%emt 0:00:44]} 6. Nf3 {[%emt 0:00:21]} Bf5 {[%emt 0:00:28]} 7. Ne5 {[%emt 0:09:46]} Bxd3 {[%emt 0:03:56]} 8. Qxd3 {[%emt 0:05:21]} Nc6 {[%emt 0:00:16]} 9. O-O {[%emt 0:04:47]} Bg7 {[%emt 0:04:37]} 10. Bf4 {[%emt 0:12:20]} Qb6 {[%emt 0:04:33]} 11. Nxc6 {[%emt 0:02:30]} bxc6 {[%emt 0:00:50]} 12. Nd2 {[%emt 0:01:16]} Nd7 {[%emt 0:04:15]} 13. Nb3 {[%emt 0:07:25]} O-O {[%emt 0:06:24]} 14. c4 {[%emt 0:09:41]} a5 {[%emt 0:04:21]} 15. Rfd1 {[%emt 0:08:55]} a4 {[%emt 0:03:21]} 16. c5 {[%emt 0:17:39]} Qb4 {[%emt 0:07:17]} 17. Bd2 {[%emt 0:00:05]} Qb7 {[%emt 0:11:08]} 18. Na5 {[%emt 0:02:37]} Qa6 {[%emt 0:00:30]} 19. Bc3 {[%emt 0:04:09]} Nxc5 {[%emt 0:09:49]} 20. dxc5 {[%emt 0:00:51]} Qxd3 {[%emt 0:00:18]} 21. Rxd3 {[%emt 0:00:04]} Bxc3 {[%emt 0:00:11]} 22. Nxc6 {[%emt 0:00:14]} Bf6 {[%emt 0:00:09]} 23. Rxd5 {[%emt 0:08:13]} a3 {[%emt 0:01:45]} 24. Rb1 {[%emt 0:02:54]} axb2 {[%emt 0:01:17]} 25. Nb4 {[%emt 0:02:04]} Rfb8 {[%emt 0:01:42]} 26. Nc2 {[%emt 0:01:10]} Rxa2 {[%emt 0:00:26]} 27. c6 {[%emt 0:00:03]} Rc8 {[%emt 0:00:30]} 28. Rdd1 {[%emt 0:00:51]} Kg7 {[%emt 0:01:30]} 29. Nb4 {[%emt 0:00:19]} Ra1 {[%emt 0:01:06]} 30. Kf1 {[%emt 0:00:14]} e6 {[%emt 0:00:52]} 31. Ke2 {[%emt 0:00:27]} Bc3 {[%emt 0:00:39]} 32. Nc2 {[%emt 0:00:37]} Rxb1 {[%emt 0:00:14]} 33. Rxb1 {[%emt 0:00:04]} Rxc6 {[%emt 0:00:12]} 34. Kd3 {[%emt 0:00:13]} Bf6 {[%emt 0:00:28]} 35. g3 {[%emt 0:00:50]} Rd6+ {[%emt 0:00:40]} 36. Ke2 {[%emt 0:00:11]} Ra6 {[%emt 0:00:17]} 0-1